fUST/lending_fUST_20240127
["ID","MTS","AMOUNT","RATE_DAILY","PERIOD"]
[312857705,1706369441443,-962.74457253,0.00035,4]
[312857706,1706369441452,-254.41303,0.00035029,2]
[312857707,1706369441461,-500.0,0.0003522,3]
[312857708,1706369441471,-500.0,0.0003524,3]
[312857709,1706369441479,-500.0,0.0003526,3]
[312857710,1706369441488,-151.0,0.00035276,4]
[312857711,1706369441497,-500.0,0.0003528,3]
[312857712,1706369441506,-500.0,0.000353,3]
[312857713,1706369441514,-500.0,0.0003532,3]
[312857714,1706369441523,-500.0,0.0003534,3]
[312857715,1706369441532,-500.0,0.0003536,3]
[312857716,1706369441541,-500.0,0.0003538,3]
[312857717,1706369441550,-500.0,0.000354,3]
[312857718,1706369441558,-500.0,0.0003542,3]
[312857719,1706369441567,-500.0,0.0003544,3]
[312857720,1706369441575,-500.0,0.0003546,3]
[312857721,1706369441584,-500.0,0.0003548,3]
[312857722,1706369441594,-1000.0,0.0003549,2]
[312857723,1706369441603,-500.0,0.000355,3]
[312857724,1706369441612,-500.0,0.0003552,3]
[312857725,1706369441621,-500.0,0.0003554,3]
[312857726,1706369441631,-500.0,0.0003556,3]
[312857727,1706369441640,-473.68254517,0.0003557,2]
[312857728,1706369441649,-1000.0,0.0003557,10]
[312857729,1706369441658,-210.0,0.0003557,2]
[312857730,1706369441667,-185.5,0.0003557,2]
[312857731,1706369441676,-500.0,0.0003558,3]
[312857732,1706369441684,-500.0,0.000356,3]
[312857733,1706369441693,-1937.904787,0.00035616,120]
[312857734,1706369441702,-500.0,0.0003562,3]
[312857735,1706369441710,-500.0,0.0003564,3]
[312857736,1706369441719,-500.0,0.0003566,3]
[312857737,1706369441728,-500.0,0.0003568,3]
[312857738,1706369441737,-285.44834,0.00035684,2]
[312857739,1706369441746,-213.494709,0.00035684,2]
[312857740,1706369441755,-177.54501,0.00035684,2]
[312857741,1706369441764,-2000.0,0.000357,13]
[312857742,1706369441773,-500.0,0.000357,3]
[312857743,1706369441782,-2000.0,0.0003571,14]
[312857744,1706369441791,-2000.0,0.0003572,14]
[312857745,1706369441800,-500.0,0.0003572,3]
[312857746,1706369441809,-50000.0,0.00035723,7]
[312857747,1706369441818,-151.0,0.00035723,2]
[312857748,1706369441827,-213.833453,0.00035723,2]
[312857749,1706369441836,-213.833453,0.00035723,2]
[312857750,1706369441847,-151.0,0.00035723,2]
[312857751,1706369441856,-151.0,0.00035723,2]
[312857752,1706369441865,-545.413487,0.00035723,2]
[312857753,1706369441874,-545.413487,0.00035723,2]
[312857754,1706369441883,-8761.734273,0.00035723,2]
[312857755,1706369441892,-8761.734273,0.00035723,2]
[312857756,1706369441901,-2723.946683,0.00035723,2]
[312857757,1706369441910,-2723.946683,0.00035723,2]
[312857758,1706369441919,-151.0,0.00035723,2]
[312857759,1706369441928,-151.0,0.00035723,2]
[312857760,1706369441937,-1208.13289462,0.00035725,30]
[312857761,1706369441947,-2000.0,0.0003573,14]
[312857762,1706369441956,-2794.066118,0.0003574,14]
[312857763,1706369441965,-151.0,0.0003574,2]
[312857764,1706369441974,-500.0,0.0003574,3]
[312857765,1706369441984,-500.0,0.0003576,3]
[312857766,1706369441993,-500.0,0.0003578,3]
[312857767,1706369442002,-2034.6,0.000358,2]
[312857768,1706369442011,-2000.0,0.000358,2]
[312857769,1706369442020,-500.0,0.000358,3]
[312857770,1706369442029,-500.0,0.0003582,3]
[312857771,1706369442038,-500.0,0.0003584,3]
[312857772,1706369442047,-500.0,0.0003586,3]
[312857773,1706369442056,-500.0,0.0003588,3]
[312857774,1706369442065,-151.0,0.00035881,4]
[312857775,1706369442075,-714.830675,0.000359,7]
[312857776,1706369442085,-500.0,0.000359,3]
[312857777,1706369442095,-245.548314,0.000359,9]
[312857778,1706369442104,-245.548314,0.000359,9]
[312857779,1706369442113,-500.0,0.0003592,3]
[312857780,1706369442122,-500.0,0.0003594,3]
[312857781,1706369442131,-500.0,0.0003596,3]
[312857782,1706369442143,-500.0,0.0003598,3]
[312857783,1706369442152,-151.0,0.00035981,2]
[312857784,1706369442161,-151.0,0.00035981,2]
[312857785,1706369442170,-179.978939,0.00035981,2]
[312857786,1706369442179,-179.978939,0.00035981,2]
[312857787,1706369442188,-310.57475016,0.00035998,4]
[312857788,1706369442197,-155.06427461,0.00035999,4]
[312857789,1706369442206,-207675.28135106,0.00036,7]
[312857790,1706369442222,-10202.84952288,0.00036,7]
[312857816,1706369449054,155.01860223,0.00011283,2]
[312857817,1706369450632,4106.34079677,0.00012412,2]
[312857818,1706369452556,3488.32998567,0.00012286,2]
[312857819,1706369460767,293.49920597,0.00022,4]
[312857825,1706369691292,157.7467643,0.00012418,2]
[312857828,1706369758152,2092.56385103,0.00012134,2]
[312857831,1706369777855,-155.01860223,0.00012132,2]
[312857832,1706369777875,-329.79784935,0.00012133,2]
[312857833,1706369777897,-302.17444234,0.00012133,2]
[312857834,1706369777920,-904.37484693,0.00012133,2]
[312857835,1706369777939,-494.75816422,0.00012133,2]
[312857836,1706369777960,-155.01860223,0.00012133,2]
[312857837,1706369777980,-528.3171374,0.00012134,2]
[312857838,1706369778001,-9204.5403553,0.00012504,2]
[312857839,1706369786338,10000.0,0.00011509,2]
[312857840,1706369793081,155.01860223,0.00011252,2]
[312857842,1706369813086,155.01860223,0.00010356,2]
[312857843,1706369833089,155.01860223,0.00010353,2]
[312857844,1706369843333,-155.01860223,0.00011501,2]
[312857845,1706369843353,-2040.63936826,0.00011502,2]
[312857846,1706369843374,-155.01860223,0.00011502,2]
[312857847,1706369843393,-1243.37082882,0.00011503,2]
[312857848,1706369843414,-19715.74438324,0.00011503,2]
[312857849,1706369843435,-19881.04253243,0.00011503,2]
[312857850,1706369843455,-20888.1177253,0.00011503,2]
[312857851,1706369843475,-1027.01334004,0.00011504,2]
[312857852,1706369843496,-1855.89235868,0.00011504,2]
[312857853,1706369843517,-1995.07963943,0.00011504,2]
[312857854,1706369843537,-617.20703081,0.00011504,2]
[312857855,1706369843557,-199.37233951,0.00011505,2]
[312857856,1706369843577,-161.15953298,0.00011505,2]
[312857857,1706369843597,-1697.2441966,0.00011505,2]
[312857858,1706369843616,-167.14042975,0.00011505,2]
[312857859,1706369843638,-155.01860223,0.00011505,2]
[312857860,1706369843657,-595.56031941,0.00011505,2]
[312857861,1706369843678,-1580.67204766,0.00011505,2]
[312857862,1706369843697,-155.01860223,0.00011505,2]
[312857863,1706369843717,-155.01860223,0.00011505,2]
[312857864,1706369843737,-2297.94454188,0.00011506,2]
[312857865,1706369843757,-1294.67927842,0.00011506,2]
[312857866,1706369843778,-2817.08459116,0.00011506,2]
[312857867,1706369843797,-3921.59583547,0.00011506,2]
[312857868,1706369843817,-309.98914756,0.00011506,2]
[312857869,1706369843838,-717.46481801,0.00011506,2]
[312857870,1706369843858,-36993.50130964,0.00011506,2]
[312857871,1706369843882,-261.32079795,0.00011507,2]
[312857872,1706369843902,-1742.30413686,0.00011507,2]
[312857873,1706369843921,-500.0,0.00011507,2]
[312857874,1706369843941,-171.07208762,0.00011507,2]
[312857875,1706369843961,-4817.36489966,0.00011507,2]
[312857876,1706369843981,-155.39443174,0.00011507,2]
[312857877,1706369844001,-527.10191996,0.00011508,2]
[312857878,1706369844022,-155.06158408,0.00011508,2]
[312857879,1706369844042,-3748.53879648,0.00011508,2]
[312857880,1706369844063,-20915.89787581,0.00011508,2]
[312857881,1706369844083,-70021.33486363,0.00011508,2]
[312857882,1706369862579,453.8695626,0.00010355,2]
[312857884,1706369908095,199.37233951,0.000115,2]
[312857885,1706369912254,167.14042975,0.000115,2]
[312857886,1706369914843,494.75816422,0.000115,2]
[312857887,1706369915897,1027.01334004,0.000115,2]
[312857888,1706369915976,1243.37082882,0.000115,2]
[312857889,1706369916702,156.15462323,0.000115,2]
[312857890,1706369917410,243.3365684,0.000115,2]
[312857891,1706369917601,19881.04253243,0.000115,2]
[312857892,1706369918085,595.56031941,0.000115,2]
[312857893,1706369918784,171.07208762,0.000115,2]
[312857894,1706369918868,261.32079795,0.000115,2]
[312857895,1706369919371,500.0,0.000115,2]
[312857896,1706369919868,3748.53879648,0.000115,2]
[312857897,1706369922034,166.80502533,0.000115,2]
[312857898,1706369923834,155.02015262,0.000115,2]
[312857899,1706369923984,527.10191996,0.000115,2]
[312857900,1706369924763,1580.67204766,0.000115,2]
[312857901,1706369924948,1914.9537849,0.000115,2]
[312857902,1706369925270,1742.30413686,0.000115,2]
[312857903,1706369925374,14305.53673552,0.000115,2]
[312857918,1706370277680,24900.0,0.00010371,2]
[312857921,1706370376391,1000.0,0.00031,31]
[312857922,1706370381602,1000.0,0.0003,30]
[312857925,1706370506821,-500.0,0.00011241,2]
[312857926,1706370506845,-1239.0,0.00011241,2]
[312857942,1706370588444,-1254.50882971,0.0001123,2]
[312857943,1706370588470,-3921.59583547,0.0001123,2]
[312857944,1706370588492,-1697.2441966,0.0001123,2]
[312857945,1706370588516,-1243.37082882,0.00011231,2]
[312857946,1706370588538,-500.0,0.00011231,2]
[312857947,1706370588560,-625.17876758,0.00011231,2]
[312857948,1706370588584,-171.07208762,0.00011231,2]
[312857949,1706370588609,-19881.04253243,0.00011232,2]
[312857950,1706370588633,-20915.89787581,0.00011232,2]
[312857951,1706370588659,-494.75816422,0.00011232,2]
[312857952,1706370588682,-617.20703081,0.00011232,2]
[312857953,1706370588705,-1294.67927842,0.00011233,2]
[312857954,1706370588729,-4817.36489966,0.00011233,2]
[312857955,1706370588750,-161.15953298,0.00011234,2]
[312857956,1706370588857,-619.87708183,0.00011234,2]
[312857957,1706370588880,-329.79784935,0.00011234,2]
[312857958,1706370588903,-453.1775686,0.00011234,2]
[312857959,1706370588926,-262.54949426,0.00011234,2]
[312857960,1706370588949,-588.79527568,0.00011234,2]
[312857961,1706370588974,-155.01860223,0.00011235,2]
[312857962,1706370588996,-156.15462323,0.00011235,2]
[312857963,1706370589019,-1995.07963943,0.00011235,2]
[312857964,1706370589046,-20888.1177253,0.00011235,2]
[312857965,1706370589070,-81256.3314766,0.00011236,2]
[312857966,1706370589093,-36993.50130964,0.00011236,2]
[312857967,1706370589118,-213.595546,0.00011236,2]
[312857968,1706370589141,-1580.67204766,0.00011236,2]
[312857969,1706370589164,-1742.30413686,0.00011236,2]
[312857970,1706370589187,-261.32079795,0.00011236,2]
[312857971,1706370589210,-997.69092193,0.00011236,2]
[312857972,1706370589235,-199.37233951,0.00011236,2]
[312857973,1706370589258,-243.3365684,0.00011237,2]
[312857974,1706370589280,-1027.01334004,0.00011237,2]
[312857975,1706370589303,-904.37484693,0.00011237,2]
[312857976,1706370589326,-562.04995501,0.00011237,2]
[312857977,1706370589350,-18917.23049455,0.00011237,2]
[312857978,1706370589373,-293.86492132,0.00011256,2]
[312857979,1706370589397,-155.30437862,0.00011345,2]
[312857980,1706370589419,-170.05097642,0.00011382,2]
[312857981,1706370589442,-309.70578029,0.00011382,2]
[312857982,1706370589465,-157.33639088,0.00011382,2]
[312857983,1706370589487,-267.96591154,0.00011382,2]
[312857984,1706370589509,-155.16232386,0.00011382,2]
[312857985,1706370589533,-6063.0591503,0.00011382,2]
[312857986,1706370589556,-642.42435849,0.00011384,2]
[312857987,1706370589579,-155.40863944,0.00011384,2]
[312857988,1706370589605,-5175.97265662,0.00011384,2]
[312857989,1706370589627,-189.98883944,0.00011384,2]
[312857990,1706370589649,-159.13769746,0.00011384,2]
[312857991,1706370589671,-265.67702683,0.00011384,2]
[312857992,1706370589694,-230.81497573,0.00011384,2]
[312857993,1706370589715,-302.34802519,0.00011384,2]
[312857994,1706370589738,-225.62064487,0.00011384,2]
[312857995,1706370589761,-1012.64629097,0.00011384,2]
[312857996,1706370589783,-227.73971285,0.00011384,2]
[312857997,1706370589806,-203.02463947,0.00011384,2]
[312857998,1706370589829,-310.00620012,0.00011384,2]
[312857999,1706370589852,-294.35075022,0.00011384,2]
[312858000,1706370589875,-687.53833928,0.00011384,2]
[312858001,1706370589897,-155.54206952,0.00011384,2]
[312858002,1706370589920,-156.37412083,0.00011384,2]
[312858003,1706370589942,-156.4394479,0.00011384,2]
[312858004,1706370589965,-279.52693458,0.00011384,2]
[312858005,1706370589987,-175.22458081,0.00011387,2]
[312858006,1706370590010,-309.80941338,0.00011498,2]
[312858007,1706370590033,-631.92103065,0.00011498,2]
[312858008,1706370590056,-167.47475254,0.000115,2]
[312858009,1706370590079,-166.48084234,0.000115,2]
[312858010,1706370590102,-712.35982904,0.000115,2]
[312858011,1706370590124,-2105.3133158,0.00011504,2]
[312858012,1706370590147,-471.05101678,0.00011504,2]
[312858013,1706370590170,-324.85365715,0.00011506,2]
[312858014,1706370590192,-271.51852772,0.00011506,2]
[312858015,1706370590214,-2075.34158496,0.00011506,2]
[312858016,1706370590238,-156.41621648,0.00011507,2]
[312858017,1706370590369,3748.53879648,0.00011229,2]
[312858018,1706370590717,641.11353618,0.00011229,2]
[312858020,1706370609181,155.01860223,0.00010106,2]
[312858021,1706370631189,155.01860223,0.00010104,2]
[312858048,1706370632225,-242.89356392,0.00011228,2]
[312858049,1706370632234,-2080.40059102,0.00011228,2]
[312858051,1706370632243,-1399.52583208,0.00011229,2]
[312858053,1706370632253,-470.04709356,0.00011229,2]
[312858055,1706370632264,-5492.23329951,0.00011229,2]
[312858315,1706370638207,-3867.66632641,0.00011229,2]
[312858316,1706370638319,-1738.9603863,0.00011229,2]
[312858317,1706370638331,-8146.83727746,0.00011229,2]
[312858318,1706370638341,-904.37484693,0.00011229,2]
[312858319,1706370638350,-213.595546,0.00011229,2]
[312858320,1706370638360,-455.66417758,0.00011229,2]
[312858321,1706370638369,-160.87713756,0.00011229,2]
[312858322,1706370638378,-20888.1177253,0.00011229,2]
[312858323,1706370638387,-20915.89787581,0.00011229,2]
[312858324,1706370638396,-1998.64161665,0.00011229,2]
[312858325,1706370638406,-4962.89120945,0.00011229,2]
[312858326,1706370638415,-1254.02064225,0.00011229,2]
[312858327,1706370638424,-1241.28408182,0.00011229,2]
[312858328,1706370638433,-597.87265451,0.00011229,2]
[312858329,1706370638443,-261.32079795,0.00011229,2]
[312858330,1706370638452,-997.69092193,0.00011229,2]
[312858331,1706370638461,-1742.30413686,0.0001123,2]
[312858332,1706370638470,-36993.50130964,0.0001123,2]
[312858333,1706370638479,-663.38696243,0.0001123,2]
[312858334,1706370638488,-562.04995501,0.0001123,2]
[312858335,1706370638497,-562.51501548,0.0001123,2]
[312858336,1706370638506,-494.75816422,0.0001123,2]
[312858337,1706370638516,-1294.67927842,0.0001123,2]
[312858338,1706370638529,-454.38844426,0.0001123,2]
[312858339,1706370638538,-1027.01334004,0.0001123,2]
[312858340,1706370638548,-2833.2282071,0.0001123,2]
[312858341,1706370638557,-615.75050978,0.0001123,2]
[312858342,1706370638567,-332.62538014,0.0001123,2]
[312858343,1706370638576,-625.17876758,0.0001123,2]
[312858344,1706370638585,-1697.2441966,0.0001123,2]
[312858345,1706370638594,-199.37233951,0.0001123,2]
[312858346,1706370638604,-263.16692187,0.0001123,2]
[312858347,1706370638613,-229.05389693,0.0001123,2]
[312858348,1706370638622,-19881.04253243,0.0001123,2]
[312858349,1706370638631,-3921.59583547,0.0001123,2]
[312858350,1706370638640,-155.90619042,0.0001123,2]
[312858351,1706370638650,-500.0,0.0001123,2]
[312858352,1706370638659,-81256.3314766,0.00011231,2]
[312858353,1706370638669,-197.79686409,0.00012502,2]
[312858354,1706370638678,-331.21118987,0.00012503,2]
[312858355,1706370638687,-155.1049584,0.00012503,2]
[312858356,1706370638696,-155.33928694,0.00012503,2]
[312858357,1706370638706,-1178.75543158,0.00012508,2]
[312858358,1706370638715,-543.49716422,0.00012509,2]
[312858359,1706370638724,-167.73943405,0.000129,2]
[312858360,1706370638733,-155.02015262,0.0001369,2]
[312858361,1706370638742,-433.416491,0.00013699,2]
[312858362,1706370638751,-688.5172537,0.00015,2]
[312858363,1706370638761,-1267.85460751,0.00015,2]
[312858364,1706370638770,-2710.54181066,0.00015,2]
[312858365,1706370638778,-293.86492129,0.00015917,2]
[312858366,1706370638787,-272.79145972,0.000165,2]
[312858367,1706370638796,-1583.7528565,0.00019,2]
[312858368,1706370638805,-166.136853,0.00019178,2]
[312858369,1706370638814,-166.125318,0.00019178,2]
[312858370,1706370638823,-679.3029243,0.0002,2]
[312858371,1706370638832,-1199.09633829,0.0002,2]
[312858372,1706370638841,-155.02015262,0.0002,2]
[312858373,1706370638850,-155.02015262,0.0002,2]
[312858374,1706370638859,-155.07399689,0.0002,2]
[312858375,1706370638868,-200.0,0.0002,2]
[312858376,1706370638878,-155.34661163,0.0002,2]
[312858377,1706370638887,-244.16390159,0.0002,2]
[312858378,1706370638896,-433.416491,0.00020548,2]
[312858379,1706370638905,-293.86492129,0.00020578,2]
[312858380,1706370638914,-1827.7377922,0.00021,2]
[312858381,1706370638924,-3327.71583483,0.00021475,2]
[312858382,1706370638933,-2877.14947796,0.00021694,2]
[312858383,1706370638942,-194.68732422,0.00021913,2]
[312858384,1706370638951,-155.5192579,0.00021913,2]
[312858385,1706370638960,-310.57475016,0.00021913,2]
[312858386,1706370638970,-178.86619478,0.00021916,2]
[312858387,1706370638978,-269.0,0.00021917,2]
[312858388,1706370638988,-164.52560989,0.00021917,2]
[312858389,1706370638997,-155.36434279,0.00021917,2]
[312858390,1706370639006,-208.56364968,0.00021917,2]
[312858391,1706370639015,-500.0,0.00021917,2]
[312858392,1706370639025,-500.0,0.00021917,2]
[312858393,1706370639034,-500.0,0.00021917,2]
[312858394,1706370639043,-500.0,0.00021917,2]
[312858395,1706370639052,-500.0,0.00021917,2]
[312858396,1706370639061,-500.0,0.00021917,2]
[312858397,1706370639070,-619.87643609,0.00021917,2]
[312858398,1706370639079,-166.666666,0.00021918,2]
[312858399,1706370639088,-2036.12411825,0.00022,2]
[312858400,1706370639097,-426.38170713,0.00022,2]
[312858401,1706370639107,-327.61566675,0.00022,2]
[312858402,1706370639116,-3971.98419525,0.00022,2]
[312858403,1706370639125,-164.09330822,0.00022,2]
[312858404,1706370639134,-195.06700815,0.00022,2]
[312858405,1706370639143,-166.666666,0.00022431,2]
[312858406,1706370639153,-167.73943403,0.00022465,2]
[312858407,1706370639162,-166.666666,0.00022944,2]
[312858408,1706370639171,-1964.93785169,0.00023,2]
[312858409,1706370639180,-166.666666,0.00023456,2]
[312858410,1706370639189,-2009.31889645,0.00023948,2]
[312858411,1706370639198,-166.666666,0.00023969,2]
[312858412,1706370639207,-1769.10514331,0.00023998,2]
[312858413,1706370639217,-292.10605797,0.00023999,2]
[312858414,1706370639226,-4017.99473219,0.00024,2]
[312858415,1706370639235,-166.666666,0.00024482,2]
[312858416,1706370639244,-680.67452781,0.00025,2]
[312858417,1706370639253,-851.06760342,0.00025,2]
[312858418,1706370639262,-7649.9786433,0.00025,2]
[312858419,1706370639271,-4727.98807036,0.00025,2]
[312858420,1706370639280,-250.67646092,0.00025,2]
[312858421,1706370639289,-1828.18039739,0.00025,2]
[312858422,1706370639298,-293.86492129,0.00025239,2]
[312858423,1706370639307,-194.9590979,0.00025479,2]
[312858424,1706370639316,-290.6944281,0.00027,2]
[312858425,1706370639325,-623.01783127,0.0002728,2]
[312858426,1706370639335,-11134.01,0.00027397,3]
[312858427,1706370639344,-200.93387921,0.000279,2]
[312858428,1706370639353,-200.93387921,0.000279,2]
[312858429,1706370639362,-239.58137365,0.00028,2]
[312858430,1706370639372,-556.2457431,0.00028,2]
[312858431,1706370639383,-153.0,0.00028493,2]
[312858432,1706370639392,-620.15089156,0.00028644,2]
[312858433,1706370639401,-283.16066453,0.00029,2]
[312858434,1706370639412,-7196.06854955,0.00029,4]
[312858435,1706370639421,-1933.42796518,0.00029,2]
[312858436,1706370639430,-155.02015262,0.00029,2]
[312858437,1706370639439,-1000.0,0.00029,2]
[312858438,1706370639448,-175.48032034,0.00029,2]
[312858439,1706370639457,-43569.40305018,0.00029867,4]
[312858440,1706370639467,-50000.0,0.00029867,4]
[312858441,1706370639476,-95291.80783399,0.00029867,4]
[312858442,1706370639485,-5000.0,0.00029867,5]
[312858443,1706370639494,-11710.60384953,0.00029867,2]
[312858444,1706370639503,-5000.0,0.00029867,5]
[312858445,1706370639511,-2491.01591142,0.00029867,2]
[312858446,1706370639523,-293.86492129,0.000299,2]
[312858447,1706370639617,-151.53333552,0.0002994,2]
[312858448,1706370639626,-2512.042803,0.00029998,2]
[312858449,1706370639635,-500.0,0.00029999,2]
[312858450,1706370639645,-577.97246029,0.00029999,2]
[312858451,1706370639654,-190.40084948,0.00029999,2]
[312858452,1706370639663,-500.0,0.00029999,2]
[312858453,1706370639672,-500.0,0.00029999,2]
[312858454,1706370639681,-500.0,0.00029999,2]
[312858455,1706370639690,-500.0,0.00029999,2]
[312858456,1706370639699,-500.0,0.00029999,2]
[312858457,1706370639708,-500.0,0.00029999,2]
[312858458,1706370639717,-500.0,0.00029999,2]
[312858459,1706370639726,-211.38916615,0.00029999,2]
[312858460,1706370639735,-170.56154962,0.00029999,2]
[312858461,1706370639743,-500.0,0.00029999,2]
[312858462,1706370639753,-500.0,0.00029999,2]
[312858463,1706370639762,-500.0,0.00029999,2]
[312858464,1706370639771,-500.0,0.00029999,2]
[312858465,1706370639780,-500.0,0.00029999,2]
[312858466,1706370639789,-500.0,0.00029999,2]
[312858467,1706370639799,-552.36503084,0.00029999,2]
[312858468,1706370639809,-500.0,0.00029999,2]
[312858469,1706370639820,-500.0,0.00029999,2]
[312858470,1706370639830,-500.0,0.00029999,2]
[312858471,1706370639839,-500.0,0.00029999,2]
[312858472,1706370639850,-500.0,0.00029999,2]
[312858473,1706370639859,-500.0,0.00029999,2]
[312858474,1706370639869,-500.0,0.00029999,2]
[312858475,1706370639878,-500.0,0.00029999,2]
[312858476,1706370639888,-500.0,0.00029999,2]
[312858477,1706370639897,-500.0,0.00029999,2]
[312858478,1706370639906,-500.0,0.00029999,2]
[312858479,1706370639915,-500.0,0.00029999,2]
[312858480,1706370639924,-500.0,0.00029999,2]
[312858481,1706370639933,-498.2,0.00029999,2]
[312858482,1706370639942,-500.0,0.00029999,2]
[312858483,1706370639951,-500.0,0.00029999,2]
[312858484,1706370639960,-500.0,0.00029999,2]
[312858485,1706370639969,-500.0,0.00029999,2]
[312858486,1706370639978,-500.0,0.00029999,2]
[312858487,1706370639987,-500.0,0.00029999,2]
[312858488,1706370639996,-500.0,0.00029999,2]
[312858489,1706370640006,-500.0,0.00029999,2]
[312858490,1706370640015,-500.0,0.00029999,2]
[312858491,1706370640024,-500.0,0.00029999,2]
[312858492,1706370640033,-500.0,0.00029999,2]
[312858493,1706370640042,-500.0,0.00029999,2]
[312858494,1706370640051,-500.0,0.00029999,2]
[312858495,1706370640060,-155.01860223,0.0003,2]
[312858496,1706370640070,-5726.50858255,0.0003,2]
[312858497,1706370640079,-1200.0,0.0003,4]
[312858498,1706370640088,-146331.23431988,0.0003,4]
[312858499,1706370640097,-688.907296,0.0003,4]
[312858500,1706370640106,-155.01860223,0.0003,4]
[312858501,1706370640115,-310.00310378,0.0003,4]
[312858502,1706370640124,-244.44828906,0.0003,4]
[312858503,1706370640133,-454.90275515,0.0003,4]
[312858504,1706370640143,-689.09430435,0.0003,4]
[312858505,1706370640152,-157.99274934,0.0003,4]
[312858506,1706370640161,-195.57103754,0.0003,2]
[312858507,1706370640171,-254.87264804,0.0003,2]
[312858508,1706370640180,-200.82122795,0.0003,4]
[312858509,1706370640190,-155.01860223,0.0003,4]
[312858510,1706370640199,-2803.02756458,0.0003,4]
[312858511,1706370640208,-300.0,0.0003,4]
[312858512,1706370640217,-408.1017874,0.0003,4]
[312858513,1706370640227,-1027.50463707,0.0003,2]
[312858514,1706370640236,-4292.55674097,0.0003,4]
[312858515,1706370640245,-271925.89520358,0.0003,14]
[312858516,1706370640254,-173.0,0.0003,2]
[312858517,1706370640263,-620.00754458,0.00030076,2]
[312858518,1706370640274,-153.0,0.00030137,2]
[312858519,1706370640283,-159.5134984,0.00030137,2]
[312858520,1706370640293,-153.0,0.00030137,2]
[312858521,1706370640302,-212.0814075,0.00030137,2]
[312858522,1706370640311,-153.0,0.00030137,2]
[312858523,1706370640320,-153.0,0.00030137,2]
[312858524,1706370640329,-153.0,0.00030137,2]
[312858525,1706370640338,-153.0,0.00030137,2]
[312858526,1706370640347,-153.0,0.00030137,2]
[312858527,1706370640355,-153.0,0.00030137,2]
[312858528,1706370640365,-153.0,0.00030137,2]
[312858529,1706370640374,-153.0,0.00030137,2]
[312858531,1706370640384,-153.0,0.00030137,2]
[312858533,1706370640394,-317.486678,0.00030137,2]
[312858534,1706370640403,-153.0,0.00030137,2]
[312858536,1706370640412,-154.5089909,0.00030137,2]
[312858538,1706370640421,-398.8831538,0.00030137,2]
[312858539,1706370640430,-158.81503,0.00030137,2]
[312858540,1706370640439,-265.580492,0.00030137,2]
[312858541,1706370640448,-151.0,0.00030597,2]
[312858542,1706370640456,-161.43393847,0.00031,4]
[312858543,1706370640466,-1000.0,0.00031,7]
[312858544,1706370640475,-265.580492,0.00031115,2]
[312858545,1706370640484,-151.0,0.00031195,2]
[312858547,1706370640493,-620.00037723,0.0003158,2]
[312858548,1706370640502,-158.81503,0.00031703,2]
[312858549,1706370640511,-151.0,0.00031793,2]
[312858550,1706370640520,-155.01860223,0.00032,4]
[312858551,1706370640532,-281.05555577,0.00032,4]
[312858552,1706370640541,-155.01860223,0.00032,4]
[312858553,1706370640551,-1000.0,0.00032,32]
[312858555,1706370640560,-265.580492,0.00032094,2]
[312858557,1706370640570,-151.0,0.00032392,2]
[312858559,1706370640579,-1275.47963777,0.00032458,2]
[312858560,1706370640588,-151.0,0.0003299,2]
[312858562,1706370640597,-228.50754628,0.00033,2]
[312858564,1706370640607,-36294.0,0.00033,7]
[312858565,1706370640617,-22355.32655684,0.00033,5]
[312858567,1706370640626,-1000.0,0.00033,33]
[312858569,1706370640635,-1738.08,0.0003306,2]
[312858570,1706370640643,-500.0,0.0003306,7]
[312858572,1706370640653,-500.0,0.0003306,7]
[312858574,1706370640662,-373.73938568,0.0003306,7]
[312858575,1706370640670,-500.0,0.0003306,7]
[312858576,1706370640680,-500.0,0.0003306,7]